bitfinex-derivatives/quotes_SOLF0:USTF0_20241008
["timestamp","ask_amount","ask_price","bid_price","bid_amount"]
[1728393482570,3.501,142.87,142.85,0.12502]
[1728393482872,10.75,142.88,142.85,0.12502]
[1728393483182,3.5011,142.86,142.85,0.12502]
[1728393483376,14.2511,142.86,142.85,0.12502]
[1728393486581,10.75,142.86,142.79,0.12502]
[1728393486784,10.75,142.82,142.79,0.12502]
[1728393487679,5.18,142.86,142.81,10.75]
[1728393487877,96.94622838,142.88,142.84,10.75]
[1728393488103,100.44702838,142.88,142.85,3.5012]
[1728393488290,100.44702838,142.88,142.84,10.75]
[1728393488780,3.5009,142.87,142.85,3.5011]
[1728393488985,3.5009,142.87,142.84,10.75]
[1728393489283,3.5009,142.87,142.84,14.2514]
[1728393489884,100.44702838,142.88,142.85,3.5013]
[1728393490079,96.94622838,142.88,142.85,3.5013]
[1728393491081,3.501,142.87,142.85,3.5013]
[1728393491479,3.5013,142.86,142.83,3.5017]
[1728393491788,96.94622838,142.88,142.83,3.5017]
[1728393491986,3.5015,142.85,142.82,3.502]
[1728393493084,3.5011,142.86,142.8,21.98]
[1728393493280,96.94622838,142.88,142.8,21.98]
[1728393493794,3.5015,142.85,142.8,21.98]
[1728393493989,16.8,142.87,142.8,16.8]
[1728393494492,5.18,142.86,142.79,5.30502]
[1728393494882,21.98,142.86,142.79,5.30502]
[1728393495191,3.5021,142.82,142.79,0.12502]
[1728393495377,16.8,142.84,142.79,0.12502]
[1728393495585,3.502,142.83,142.79,3.62762]
[1728393495882,5.16,142.83,142.79,0.12502]
[1728393496193,20.3026,142.8,142.79,0.12502]
[1728393496391,25.4626,142.8,142.79,0.12502]
[1728393497080,8.6626,142.8,142.79,0.12502]
[1728393498082,25.4626,142.8,142.79,0.12502]
[1728393498284,21.96,142.8,142.73,0.12502]
[1728393498600,16.8,142.78,142.73,0.12502]
[1728393498791,5.16,142.77,142.73,0.12502]
[1728393499199,3.5036,142.76,142.73,0.12502]
[1728393499686,16.8,142.79,142.73,0.12502]
[1728393499888,8.6831,142.79,142.73,16.92502]
[1728393500092,5.18,142.8,142.73,16.92502]
[1728393500305,5.18,142.8,142.76,3.5034]
[1728393500490,3.5029,142.79,142.76,3.5034]
[1728393500689,5.18,142.8,142.74,1.3793]
[1728393500893,16.8,142.83,142.77,3.5033]
[1728393501193,5.18,142.81,142.74,7.9435]
[1728393501397,5.18,142.81,142.76,16.8]
[1728393501590,8.6824,142.81,142.76,16.8]
[1728393501791,5.18,142.81,142.77,3.5032]
[1728393501994,3.503,142.79,142.75,1.3362]
[1728393502388,3.503,142.79,142.74,24.7435]
[1728393502389,5.18,142.81,142.74,19.5635]
[1728393502593,3.5032,142.78,142.74,19.5635]
[1728393502893,5.18,142.81,142.74,19.5635]
[1728393503095,3.503,142.79,142.76,3.5035]
[1728393503593,5.18,142.81,142.76,3.5035]
[1728393503790,5.18,142.81,142.75,3.5037]
[1728393504689,3.5031,142.78,142.75,3.5037]
[1728393504998,5.18,142.81,142.75,3.5037]
[1728393505194,3.5033,142.78,142.75,3.5037]
[1728393505587,5.18,142.78,142.73,0.12502]
[1728393505788,5.18,142.78,142.74,3.5039]
[1728393505789,3.5035,142.77,142.74,3.5039]
[1728393506395,5.18,142.78,142.74,3.5039]
[1728393506396,3.5036,142.76,142.74,3.5039]
[1728393507196,3.5036,142.76,142.73,3.62922]
[1728393508397,5.18,142.78,142.73,3.62922]
[1728393508702,3.5039,142.75,142.73,0.12502]
[1728393509491,21.98,142.78,142.73,0.12502]
[1728393510097,3.504,142.75,142.73,0.12502]
[1728393510494,8.684,142.75,142.73,0.12502]
[1728393510707,5.18,142.75,142.73,0.12502]
[1728393511006,3.504,142.74,142.73,0.12502]
[1728393511799,16.8,142.78,142.73,0.12502]
[1728393512102,3.5038,142.76,142.73,0.12502]
[1728393512309,8.6838,142.76,142.74,3.504]
[1728393512603,21.98,142.76,142.73,0.12502]
[1728393512997,5.18,142.76,142.73,0.12502]
[1728393513394,3.5039,142.75,142.73,0.12502]
[1728393513616,21.98,142.76,142.73,0.12502]
[1728393513999,3.56108482,142.77,142.73,0.12502]
[1728393514306,5.18,142.75,142.73,0.12502]
[1728393514506,16.8,142.8,142.73,3.62922]
[1728393514809,16.8,142.8,142.73,0.12502]
[1728393515001,3.5033,142.78,142.74,3.5039]
[1728393515307,8.63489363,142.77,142.73,0.12502]
[1728393515508,3.504,142.74,142.73,0.12502]
[1728393515804,8.684,142.74,142.73,0.12502]
[1728393518515,7.004,142.86,142.73,0.12502]
[1728393518811,21.98,142.82,142.73,0.12502]
[1728393519313,3.5031,142.78,142.75,3.5037]
[1728393520407,21.98,142.82,142.73,0.12502]
[1728393520613,21.98,142.82,142.73,4.33512]
[1728393520803,5.18,142.82,142.74,16.8]
[1728393521034,3.5025,142.81,142.78,3.5029]
[1728393521413,16.8,142.84,142.74,16.8]
[1728393521604,8.6822,142.82,142.79,3.5027]
[1728393522204,3.5024,142.81,142.79,3.5027]
[1728393522604,3.5024,142.81,142.78,3.503]
[1728393523315,21.98,142.82,142.73,4.33512]
[1728393523510,16.8,142.8,142.73,4.33512]
[1728393523812,5.18,142.79,142.73,4.33512]
[1728393524017,3.5033,142.77,142.73,4.33512]
[1728393524522,3.5032,142.78,142.75,3.5037]
[1728393524716,5.18,142.79,142.75,3.5037]
[1728393525123,3.5034,142.77,142.75,3.5037]
[1728393525323,5.18,142.79,142.74,3.504]
[1728393525521,5.18,142.79,142.73,4.33512]
[1728393525522,3.5037,142.76,142.73,4.33512]
[1728393525929,3.5037,142.76,142.73,7.83922]
[1728393526431,3.5037,142.76,142.73,4.97472]
[1728393526631,5.18,142.79,142.73,1.47062]
[1728393526834,16.8,142.77,142.73,0.12502]
[1728393527535,5.34,142.76,142.73,0.12502]
[1728393527831,3.504,142.74,142.73,0.12502]
[1728393540329,20.3039,142.75,142.73,0.12502]
[1728393540523,5.34,142.76,142.73,0.12502]
[1728393540931,20.36759416,142.77,142.73,0.12502]
[1728393541132,340.7325,142.8,142.73,0.12502]
[1728393541133,5.34,142.76,142.73,0.12502]
[1728393541546,8.8437,142.76,142.73,0.12502]
[1728393541734,8.8437,142.76,142.73,3.62922]
[1728393541934,3.5039,142.75,142.73,3.62922]
[1728393542342,5.34,142.76,142.73,0.12502]
[1728393543637,5.34,142.76,142.75,3.5038]
[1728393543837,5.34,142.76,142.73,0.12502]
[1728393544038,5.34,142.77,142.76,3.5036]
[1728393544546,5.34,142.8,142.73,16.92502]
[1728393545233,5.34,142.8,142.78,3.5028]
[1728393545734,5.34,142.81,142.73,16.92502]
[1728393545970,8.8425,142.81,142.78,3.503]
[1728393547048,3.5026,142.8,142.77,3.5032]
[1728393547939,16.8,142.79,142.74,3.5039]
[1728393548141,16.8,142.79,142.73,0.12502]
[1728393548439,3.5032,142.78,142.74,3.5039]
[1728393548644,3.5032,142.78,142.73,0.12502]
[1728393549243,20.3029,142.79,142.73,0.12502]
[1728393549465,16.8,142.79,142.73,0.12502]
[1728393549647,3.5031,142.78,142.76,3.5034]
[1728393550043,3.5031,142.78,142.73,0.12502]
[1728393550044,22.14,142.81,142.73,0.12502]
[1728393550246,3.5031,142.78,142.76,3.5035]
[1728393550448,16.8,142.79,142.73,0.12502]
[1728393550645,5.34,142.78,142.74,3.5039]
[1728393551450,5.34,142.78,142.73,0.12502]
[1728393551451,3.5036,142.76,142.73,0.12502]
[1728393551657,5.34,142.78,142.73,3.62912]
[1728393552150,16.8,142.77,142.73,3.62912]
[1728393553457,3.504,142.75,142.73,3.62912]
[1728393555462,3.5037,142.76,142.74,3.504]
[1728393555652,3.5037,142.76,142.73,0.12502]
[1728393556558,3.5037,142.76,142.73,3.62912]
[1728393557162,3.5037,142.76,142.74,3.504]
[1728393557362,16.8,142.77,142.73,0.12502]
[1728393557552,3.5039,142.75,142.73,0.12502]
[1728393558563,3.504,142.74,142.73,0.12502]
[1728393559658,8.864,142.74,142.73,0.12502]
[1728393559859,25.664,142.74,142.73,0.12502]
[1728393562356,22.16,142.74,142.69,3.5052]
[1728393562555,3.5048,142.72,142.69,3.5052]
[1728393563263,3.5048,142.72,142.7,3.505]
[1728393564062,22.16,142.74,142.68,1.3622]
[1728393564063,3.5044,142.73,142.71,3.5048]
[1728393564264,22.16,142.74,142.68,1.3622]
[1728393564265,5.36,142.74,142.68,1.3622]
[1728393564658,8.8641,142.74,142.72,3.5044]
[1728393565256,5.36,142.74,142.73,3.5043]
[1728393565465,5.36,142.77,142.71,16.8]
[1728393565662,337.12502,142.79,142.72,16.8]
[1728393565968,342.48502,142.79,142.77,3.5031]
[1728393566167,342.48502,142.79,142.73,2.8346]
[1728393566362,345.98802,142.79,142.76,3.5034]
[1728393567066,0.12502,142.79,142.78,3.5031]
[1728393567566,0.12502,142.79,142.73,2.8346]
[1728393567761,3.62792,142.79,142.73,2.8346]
[1728393568068,0.12502,142.79,142.73,2.8346]
[1728393568363,16.92502,142.79,142.75,3.5037]
[1728393568562,16.92502,142.79,142.73,2.8346]
[1728393568962,3.5035,142.77,142.74,3.5039]
[1728393569166,16.92502,142.79,142.74,3.5039]
[1728393569368,5.36,142.77,142.73,1.436]
[1728393569564,5.36,142.77,142.74,3.504]
[1728393569565,3.5036,142.76,142.74,3.504]
[1728393569759,22.16,142.77,142.73,1.436]
[1728393570161,3.5038,142.76,142.73,4.9401]
[1728393570869,25.66031412,142.77,142.71,1.3685]
[1728393571079,25.66031412,142.77,142.72,3.5044]
[1728393571080,3.5041,142.74,142.72,3.5044]
[1728393571553,16.8,142.76,142.72,3.5044]
[1728393571759,3.5039,142.75,142.72,3.5044]
[1728393573359,3.5039,142.75,142.73,3.5043]
[1728393573666,22.16,142.77,142.69,16.8]
[1728393573963,22.16,142.77,142.74,3.5039]
[1728393574508,25.6635,142.77,142.7,1.3338]
[1728393574962,3.5032,142.78,142.76,3.5036]
[1728393575169,22.28502,142.79,142.76,3.5036]
[1728393575361,22.28502,142.79,142.71,16.8]
[1728393575555,3.5033,142.77,142.75,3.5037]
[1728393575767,22.28502,142.79,142.71,16.8]
[1728393576161,25.78802,142.79,142.77,3.5033]
[1728393576668,22.28502,142.79,142.77,3.5033]
[1728393576967,22.28502,142.79,142.77,3.5031]
[1728393577369,16.92502,142.79,142.77,3.5031]
[1728393577774,16.92502,142.79,142.73,1.4371]
[1728393578273,20.42802,142.79,142.73,1.4371]
[1728393578570,20.42802,142.79,142.76,3.5033]
[1728393579072,20.42802,142.79,142.77,3.5033]
[1728393579773,3.62802,142.79,142.77,3.5033]
[1728393580365,0.12502,142.79,142.74,1.3626]
[1728393581073,0.12502,142.79,142.77,3.5032]
[1728393581271,3.62802,142.79,142.77,3.5032]
[1728393581875,3.5031,142.78,142.76,3.5034]
[1728393582067,0.12502,142.79,142.76,3.5034]
[1728393582472,3.62792,142.79,142.77,3.5033]
[1728393584277,0.12502,142.79,142.78,3.5031]
[1728393587579,16.92502,142.79,142.74,1.3626]
[1728393587885,22.20502,142.79,142.73,1.4371]
[1728393588480,3.5034,142.77,142.75,3.5037]
[1728393589801,3.5038,142.76,142.73,3.5042]
[1728393590691,3.5038,142.76,142.7,7.9625]
[1728393590891,3.5038,142.76,142.74,3.504]
[1728393591893,20.304,142.75,142.72,3.5044]
[1728393592093,20.304,142.75,142.7,2.6825]
[1728393592396,20.304,142.75,142.73,3.5042]
[1728393592789,16.8,142.75,142.73,3.5042]
[1728393593196,16.8,142.75,142.74,3.504]
[1728393594001,8.7837,142.76,142.74,3.504]
[1728393596401,10.77,142.75,142.74,3.504]
[1728393597300,14.274,142.75,142.72,3.5044]
[1728393597508,10.77,142.73,142.72,3.5044]
[1728393598403,10.77,142.75,142.74,3.504]
[1728393601908,5.28,142.76,142.72,10.77]
[1728393602098,0.12502,142.79,142.75,10.77]
[1728393602606,0.12502,142.79,142.76,3.5035]
[1728393602812,10.77,142.78,142.76,3.5035]
[1728393603317,10.77,142.77,142.73,10.77]
[1728393604013,10.77,142.77,142.74,10.77]
[1728393604505,10.77,142.78,142.74,10.77]
[1728393604706,0.12502,142.79,142.75,10.77]
[1728393604913,0.12502,142.79,142.76,3.5035]
[1728393605115,0.12502,142.79,142.75,10.77]
[1728393605309,10.77,142.78,142.72,5.28]
[1728393605615,14.2732,142.78,142.73,10.77]
[1728393605826,14.2732,142.78,142.72,5.28]
[1728393605827,0.12502,142.79,142.74,10.77]
[1728393606116,10.89502,142.79,142.75,10.77]
[1728393606316,10.89502,142.79,142.76,3.5035]
[1728393606533,10.89502,142.79,142.75,10.77]
[1728393606912,10.89502,142.79,142.78,3.5031]
[1728393607317,0.12502,142.79,142.78,3.5031]
[1728393607815,0.12502,142.79,142.78,14.2731]
[1728393608120,0.12502,142.79,142.78,3.5031]
[1728393609213,16.81,142.84,142.81,3.5022]
[1728393609214,22.09,142.84,142.81,3.5022]
[1728393609612,25.5918,142.84,142.81,3.5022]
[1728393610719,3.5023,142.82,142.76,4.2773]
[1728393611527,3.5023,142.82,142.8,3.5025]
[1728393611826,22.09,142.84,142.76,4.2773]
[1728393612118,22.09,142.84,142.81,3.5023]
[1728393612417,25.5917,142.84,142.81,3.5023]
[1728393612616,22.09,142.84,142.82,3.5019]
[1728393612818,22.09,142.84,142.76,4.2773]
[1728393612819,5.28,142.84,142.78,5.28]
[1728393613224,3.62642,142.85,142.83,3.5018]
[1728393613516,0.12502,142.85,142.83,3.5018]
[1728393614821,3.62642,142.85,142.83,3.5018]
[1728393615319,3.5016,142.84,142.82,3.502]
[1728393615523,0.12502,142.85,142.83,5.28]
[1728393615736,16.81,142.92,142.83,6.6366]
[1728393615916,16.81,142.92,142.88,3.5006]
[1728393616426,3.62502,142.91,142.87,3.5007]
[1728393616618,16.81,142.9,142.84,1.3785]
[1728393617022,20.3106,142.88,142.85,3.5013]
[1728393617325,16.81,142.88,142.85,3.5013]
[1728393618322,16.81,142.88,142.83,6.6366]
[1728393618824,0.12502,142.91,142.83,6.6366]
[1728393618825,16.81,142.86,142.83,1.3566]
[1728393619027,16.81,142.86,142.83,3.5017]
[1728393619537,16.81,142.86,142.84,3.5015]
[1728393621125,16.81,142.86,142.85,3.5014]
[1728393621424,16.81,142.88,142.82,5.28]
[1728393621727,16.81,142.88,142.86,3.501]
[1728393622324,16.81,142.88,142.83,3.5016]
[1728393622518,16.81,142.88,142.82,5.28]
[1728393623128,20.3107,142.88,142.82,5.28]
[1728393623518,20.3107,142.88,142.85,3.5012]
[1728393623722,20.3107,142.88,142.8,2.6992]
[1728393623925,20.3107,142.88,142.81,5.28]
[1728393624328,3.5005,142.89,142.81,5.28]
[1728393624529,20.3105,142.89,142.86,3.5009]
[1728393624842,16.81,142.89,142.81,5.28]
[1728393625019,3.5008,142.88,142.81,5.28]
[1728393625224,16.81,142.87,142.8,2.6992]
[1728393625530,16.81,142.87,142.81,5.26]
[1728393625531,20.311,142.87,142.81,5.26]
[1728393625924,20.311,142.87,142.84,3.5015]
[1728393626530,16.81,142.87,142.85,3.5012]
[1728393627033,16.81,142.87,142.81,5.26]
[1728393627629,20.311,142.87,142.84,3.5014]
[1728393628031,16.81,142.87,142.81,5.26]
[1728393628225,16.81,142.87,142.85,3.5012]
[1728393629825,3.5008,142.88,142.85,3.5012]
[1728393630030,3.5008,142.88,142.81,5.26]
[1728393630031,3.5003,142.9,142.81,5.26]
[1728393630334,22.21502,142.91,142.81,5.26]
[1728393630529,3.5002,142.9,142.86,3.501]
[1728393630738,22.21502,142.91,142.86,3.501]
[1728393631228,3.5005,142.89,142.86,3.501]
[1728393632036,22.21502,142.91,142.83,5.26]
[1728393632425,16.93502,142.91,142.83,5.26]
[1728393632941,16.93502,142.91,142.87,3.5008]
[1728393633733,3.5002,142.9,142.87,3.5008]
[1728393634129,3.5002,142.9,142.88,3.5006]
[1728393634835,3.5002,142.9,142.83,5.26]
[1728393635438,3.5002,142.9,142.83,5.26]
[1728393635628,3.5002,142.9,142.88,3.5006]
[1728393636430,10.75,142.89,142.88,3.5006]
[1728393636934,10.75,142.89,142.87,3.5007]
[1728393637631,3.5002,142.9,142.88,3.5006]
[1728393637826,10.75,142.89,142.88,3.5006]
[1728393640040,3.62502,142.91,142.87,3.5007]
[1728393640345,10.75,142.9,142.85,1.4164]
[1728393641234,10.75,142.9,142.88,3.5004]
[1728393641437,10.75,142.9,142.86,5.26]
[1728393642039,0.12502,142.91,142.87,10.75]
[1728393642531,0.12502,142.91,142.9,3.5001]
[1728393645756,10.87502,142.91,142.85,6.41640009]
[1728393645960,10.87502,142.91,142.86,10.75]
[1728393646167,14.37512,142.91,142.88,3.5005]
[1728393646455,14.37512,142.91,142.87,5.26]
[1728393647862,14.37512,142.91,142.89,3.5002]
[1728393648264,10.87502,142.91,142.87,5.26]
[1728393648462,0.12502,142.91,142.9,14.2501]
[1728393648665,10.75,142.96,142.9,10.75]
[1728393649157,14.2488,142.96,142.9,10.75]
[1728393649755,14.2488,142.96,142.93,3.4992]
[1728393650461,10.87502,142.97,142.96,3.4987]
[1728393650664,10.87502,142.97,142.93,10.75]
[1728393650861,10.87502,142.97,142.96,3.4987]
[1728393651057,0.12502,142.97,142.96,3.4987]
[1728393653555,0.12502,142.97,142.93,10.75]
[1728393653556,0.12502,142.97,142.95,3.4988]
[1728393654769,0.12502,142.97,142.96,3.4987]
[1728393654968,0.12502,142.97,142.93,10.75]
[1728393655165,3.4987,142.96,142.92,14.8955]
[1728393655373,3.4987,142.96,142.94,3.499]
[1728393655764,10.87502,142.97,142.92,14.8955]
[1728393655966,10.87502,142.97,142.95,3.4988]
[1728393656559,10.87502,142.97,142.93,3.4993]
[1728393656757,10.87502,142.97,142.92,14.8955]
[1728393657162,14.37342,142.97,142.92,14.8955]
[1728393657965,10.87502,142.97,142.95,3.4988]
[1728393658374,0.12502,142.97,142.95,3.4988]
[1728393660377,0.12502,142.97,142.96,3.4987]
[1728393663371,0.12502,142.97,142.96,14.2487]
[1728393667371,0.12502,142.97,142.93,3.53691245]
[1728393667676,0.12502,142.97,142.94,10.75]
[1728393667970,3.62212,143.03,143.0,3.4976]
[1728393668372,0.12502,143.03,142.99,10.75]
[1728393668570,0.12502,143.03,143.02,3.4972]
[1728393672376,0.12502,143.03,143.02,14.2472]
[1728393672779,0.12502,143.09,143.06,3.4962]
[1728393673076,14.246,143.07,143.02,10.75]
[1728393673377,14.246,143.07,143.04,3.4966]
[1728393674779,3.4962,143.06,143.03,3.4968]
[1728393675274,10.75,143.07,143.02,10.75]
[1728393675477,14.2461,143.07,143.04,3.4965]
[1728393675682,10.75,143.07,143.02,10.75]
[1728393675978,14.2459,143.08,143.03,10.75]
[1728393677079,14.2459,143.08,143.05,3.4963]
[1728393677977,14.2462,143.06,143.04,3.4966]
[1728393678182,10.75,143.05,143.04,3.4966]
[1728393678585,10.75,143.06,143.04,3.4966]
[1728393680485,14.2466,143.05,143.03,5.44]
[1728393680679,10.75,143.04,143.03,5.44]
[1728393681084,10.75,143.05,143.03,5.44]
[1728393681782,10.75,143.04,142.99,12.092]
[1728393681988,10.75,143.03,143.0,5.44]
[1728393682487,14.2466,143.05,143.02,3.4971]
[1728393682881,3.4973,143.02,143.0,3.4976]
[1728393683081,10.75,143.01,143.0,3.4976]
[1728393683290,10.75,143.01,142.99,1.342]
[1728393683990,10.75,143.03,142.99,1.342]
[1728393684493,14.2471,143.03,143.0,3.4976]
[1728393684792,10.75,143.02,142.99,1.342]
[1728393685096,6.8057,143.07,143.0,3.4975]
[1728393685097,14.247,143.03,143.0,3.4975]
[1728393685590,10.75,143.03,142.99,1.342]
[1728393685788,0.12502,143.09,142.99,12.092]
[1728393685991,10.75,143.07,143.05,3.4965]
[1728393686189,10.75,143.07,143.02,16.19]
[1728393686694,10.75,143.07,143.06,3.4962]
[1728393686999,10.75,143.07,143.02,16.19]
[1728393687293,14.2461,143.07,143.02,16.19]
[1728393688195,3.4963,143.06,143.04,3.4965]
[1728393688494,10.75,143.07,143.02,16.19]
[1728393688693,14.2461,143.07,143.05,3.4964]
[1728393689193,10.75,143.07,143.06,3.4962]
[1728393689383,14.2458,143.08,143.06,3.4962]
[1728393690490,5.56502,143.09,143.04,10.75]
[1728393690689,3.62052,143.09,143.04,10.75]
[1728393691088,3.4957,143.08,143.06,3.4961]
[1728393691486,3.4957,143.08,143.02,5.44]
[1728393691487,14.2457,143.08,143.03,10.75]
[1728393691690,14.2457,143.08,143.05,3.4963]
[1728393692695,14.2457,143.08,143.03,10.75]
[1728393692895,14.2457,143.08,143.06,3.4961]
[1728393695197,10.75,143.07,143.02,16.19]
[1728393695392,3.4964,143.06,143.03,3.4968]
[1728393695587,3.4964,143.06,143.02,16.19]
[1728393695790,10.75,143.07,143.03,10.75]
[1728393695992,14.246,143.07,143.05,3.4965]
[1728393696302,10.87502,143.09,143.04,10.75]
[1728393696496,14.37072,143.09,143.04,10.75]
[1728393696796,0.12502,143.09,143.05,10.75]
[1728393698398,10.87502,143.15,143.08,10.75]
[1728393698800,3.4947,143.13,143.1,3.4951]
[1728393698997,10.87502,143.15,143.1,10.75]
[1728393699407,10.87502,143.15,143.11,3.4948]
[1728393699408,3.4944,143.14,143.11,3.4948]
[1728393699599,10.87502,143.15,143.11,3.4948]
[1728393699998,0.12502,143.15,143.11,3.4948]
[1728393700197,3.4943,143.14,143.1,10.75]
[1728393700404,3.4943,143.14,143.11,3.4949]
[1728393702209,10.87502,143.15,143.06,5.44]
[1728393702405,3.4948,143.12,143.09,10.75]
[1728393702706,10.75,143.11,143.07,5.44]
[1728393703007,10.75,143.11,143.07,8.9358]
[1728393703008,3.4954,143.1,143.07,8.9358]
[1728393703604,3.4954,143.1,143.08,3.4956]
[1728393703912,3.4951,143.11,143.07,16.19]
[1728393704412,3.4951,143.11,143.08,3.4957]
[1728393704908,3.4951,143.11,143.08,3.4955]
[1728393706314,3.495,143.11,143.08,3.4957]
[1728393707007,3.495,143.11,143.09,3.4954]
[1728393709721,3.4949,143.12,143.09,3.4954]
[1728393710421,3.4949,143.12,143.08,10.75]
[1728393710720,3.4949,143.12,143.09,3.4954]
[1728393711123,3.4951,143.11,143.09,3.4954]
[1728393711318,10.75,143.13,143.09,3.4954]
[1728393711821,3.4949,143.12,143.08,10.75]
[1728393712219,0.12502,143.15,143.1,10.75]
[1728393712419,10.75,143.14,143.1,10.75]
[1728393712921,3.4946,143.13,143.11,14.2449]
[1728393713222,0.12502,143.15,143.11,10.75]
[1728393713619,3.4946,143.13,143.11,3.4948]
[1728393714521,3.4944,143.14,143.12,3.4947]
[1728393716226,3.4945,143.13,143.11,3.4949]
[1728393716429,10.75,143.14,143.1,10.75]
[1728393716828,3.4949,143.12,143.1,14.2451]
[1728393717217,3.4946,143.13,143.11,3.495]
[1728393717813,10.75,143.14,143.1,10.75]
[1728393718014,3.4948,143.12,143.1,14.2451]
[1728393718630,3.4948,143.12,143.09,6.6972]
[1728393718631,10.75,143.12,142.87,21.03]
[1728393718930,5.34,143.14,143.04,5.3731572]
[1728393719129,10.75,143.07,143.02,2.7029]
[1728393719424,3.42987293,143.09,143.02,1.3873]
[1728393719625,5.34,143.1,143.02,1.3873]
[1728393719626,10.75,143.05,143.02,1.3873]
[1728393720232,3.4967,143.04,143.0,3.4975]
[1728393720435,3.4967,143.04,142.98,4.1436]
[1728393720436,14.2467,143.04,142.99,16.09]
[1728393720731,14.2467,143.04,142.99,5.34]
[1728393721328,14.2467,143.04,143.0,3.4976]
[1728393721721,14.2467,143.04,142.99,16.09]
[1728393721923,3.4967,143.04,143.01,3.4972]
[1728393722231,3.4961,143.07,143.03,10.87502]
[1728393722527,5.34,143.09,143.05,3.4964]
[1728393722730,5.34,143.09,143.03,0.12502]
[1728393723028,22.12,143.09,143.04,3.4965]
[1728393723227,22.12,143.09,143.03,0.12502]
[1728393723228,16.78,143.07,143.03,0.12502]
[1728393723436,16.78,143.05,143.03,0.12502]
[1728393723641,3.4967,143.04,143.03,0.12502]
[1728393724327,5.34,143.05,143.03,0.12502]
[1728393724834,3.4967,143.04,143.03,0.12502]
[1728393725732,5.34,143.05,143.03,0.12502]
[1728393725933,18.1163,143.08,143.03,0.12502]
[1728393726230,23.4563,143.08,143.03,0.12502]
[1728393726735,3.4967,143.04,143.03,0.12502]
[1728393726921,16.78,143.08,143.03,0.12502]
[1728393727124,22.12,143.08,143.03,0.12502]
[1728393727320,3.4963,143.06,143.03,3.62172]
[1728393727525,3.4963,143.06,143.03,0.12502]
[1728393727824,3.496,143.08,143.05,3.4964]
[1728393728125,5.34,143.09,143.03,0.12502]
[1728393728318,3.496,143.07,143.04,3.4965]
[1728393728528,16.78,143.08,143.03,0.12502]
[1728393729824,3.4966,143.05,143.03,0.12502]
[1728393730027,16.78,143.08,143.03,0.12502]
[1728393730426,3.4961,143.07,143.03,0.12502]
[1728393731536,3.4961,143.07,143.05,3.4964]
[1728393732234,3.4961,143.07,143.04,3.4966]
[1728393732428,3.4962,143.06,143.04,3.4966]
[1728393732625,5.34,143.09,143.03,0.12502]
[1728393732831,5.34,143.09,143.06,3.496]
[1728393733128,16.78,143.09,143.03,0.12502]
[1728393733335,8.0397,143.12,143.03,3.62192]
[1728393733538,3.4963,143.06,143.03,3.62192]
[1728393734933,3.4967,143.04,143.03,0.12502]